Cogmind - Beta 12 @@@ ROGUE MODE // 2023.03.09 @ 19:59:12 Player: ILikeVoltron Result: Destroyed by G-34 Mercenary with Small Laser Performance ------------- Evolutions (0) 0 Regions Visited (1) 200 Robots Destroyed (4) 20 Value Destroyed (138) 138 Prototype IDs (1) 20 Alien Tech Used (0) 0 Bonus (0) 0 TOTAL SCORE: 378 Bonus ------- None Cogmind --------- Core Integrity 0/250 Matter 270/300 Energy 180/280 System Corruption 0% Temperature Warm (134) Movement Treading (240) Ox1 Location -10/Materials Parts ------- > --- POWER (1) -------- Heavy Ion Engine > --- PROPULSION (2) --- Light Treads > --- UTILITY (2) ------ Medium Storage Unit Sensor Array > --- WEAPON (2) ------- Particle Cannon Particle Cannon > --- INVENTORY (10) --- Light Treads Compact Wheel Compact Wheel Small Storage Unit Large Storage Unit Peak State ------------ > --- POWER ------------ Heavy Ion Engine > --- PROPULSION ------- Light Treads > --- UTILITY ---------- Medium Storage Unit Sensor Array > --- WEAPON ----------- Particle Cannon Particle Cannon > --- INVENTORY -------- Light Treads Compact Wheel Compact Wheel Small Storage Unit Large Storage Unit [Rating: 10] Favorites ----------- Power Light Ion Engine Engine Light Ion Engine Propulsion Aluminum Leg Treads Light Treads Leg Aluminum Leg Utility Sensor Array Device Sensor Array Storage Medium Storage Unit Weapon Medium Laser Energy Gun Medium Laser Energy Cannon Particle Cannon Ballistic Gun Assault Rifle Build | -11 -10 ------- Run | Jun Mat Slots Evolved . | . . Power . | . . Propulsion . | . . Utility . | . . Weapon . | . . Parts Attached 8 | . 8 Power 2 | . 2 Engine 2 | . 2 Core . | . . Reactor . | . . Propulsion 1 | . 1 Treads 1 | . 1 Leg . | . . Wheel . | . . Hover . | . . Flight . | . . Utility 2 | . 2 Device 1 | . 1 Storage 1 | . 1 Processor . | . . Hackware . | . . Protection . | . . Artifact . | . . Weapon 3 | . 3 Energy Gun . | . . Energy Cannon 2 | . 2 Ballistic Gun 1 | . 1 Ballistic Cannon . | . . Launcher . | . . Special Weapon . | . . Impact Weapon . | . . Slashing Weapon . | . . Piercing Weapon . | . . Special Melee Weapon . | . . Unidentified Prototypes 1 | . 1 Parts Lost 4 | . 4 Power 2 | . 2 Propulsion 1 | . 1 Utility . | . . Weapon 1 | . 1 Highest Loss Streak 2 | . 2 To Critical Strikes . | . . Average Slot Usage (%) 76 | . 76 Engine 6 | . 6 Treads 10 | . 10 Leg 16 | . 16 Device 14 | . 14 Storage 14 | . 14 Energy Gun 9 | . 9 Ballistic Gun 4 | . 4 Naked Turns . | . . Heaviest Build 23 | 12 23 Greatest Support 20 | 20 20 Greatest Overweight (x) 1 | . 1 Average Overweight (x) . | . . Largest Inventory Capacity 10 | . 10 Average Capacity 9 | . 9 Most Carried 8 | . 8 Average Carried 5 | . 5 Final Capacity 10 | 8 10 Final Carried 6 | 6 5 Class Distribution -------------------- 100% | Mutant Dominant Class ---------------- Mutant | -10/Materials Resources | -11 -10 ----------- Run | Jun Mat Matter Collected 271 | 200 71 Remotely . | . . Salvage Created 137 | . 137 Parts 7 | . 7 Haulers Intercepted . | . . Recyclers Shooed . | . . Parts Field Recycled . | . . Retrieved Matter . | . . Parts Self-Destructed . | . . Prevented . | . . Kills | -11 -10 ------- Run | Jun Mat Combat Hostiles Destroyed 3 | . 3 Guns 2 | . 2 Cannons 1 | . 1 Classes Destroyed 2 | . 2 Operator 1 | . 1 Grunt 3 | . 3 Best Kill Streak 2 | . 2 Combat Bots Only 2 | . 2 Max Kills in Single Turn 1 | . 1 Gunslinging . | . . Exploded . | . . Melee . | . . Uniques/NPCs Destroyed . | . . Combat | -11 -10 -------- Run | Jun Mat Damage Taken 707 | . 707 Core 257 | . 257 Absorbed by Shields . | . . Core Remaining (%) 100 | 100 . Volleys Fired 17 | . 17 Largest 2 | . 2 Hottest 136 | . 136 Shots Fired 34 | . 34 Gun 30 | . 30 Cannon 4 | . 4 Launcher . | . . Special . | . . Kinetic 12 | . 12 Thermal 19 | . 19 Explosive . | . . Electromagnetic 3 | . 3 Robot Hit Streak 11 | . 11 Robot Miss Streak 1 | . 1 Penetration Max . | . . Secondary Targets . | . . Shots Hit Robots 26 | . 26 Core Hits 9 | . 9 Critical Kills . | . . Critical Parts Destroyed . | . . Critical Strikes . | . . Melee Attacks . | . . Impact . | . . Slashing . | . . Piercing . | . . Sneak Attacks . | . . Combat Hostiles . | . . Follow-up Attacks . | . . Damage Inflicted 389 | . 389 Guns 307 | . 307 Cannons 61 | . 61 Explosions 21 | . 21 Melee . | . . Ramming . | . . Kinetic 126 | . 126 Thermal 218 | . 218 Explosive . | . . Electromagnetic 45 | . 45 Impact . | . . Slashing . | . . Piercing . | . . Highest Corruption . | . . Average Corruption . | . . Corruption Purged . | . . Corruption Blocked . | . . Overload Shots . | . . Overflow Damage 80 | . 80 Projectiles . | . . Explosions 80 | . 80 Melee . | . . Knockbacks . | . . Impact . | . . Kinetic . | . . Secondary . | . . Self-Inflicted Damage 176 | . 176 Shots 3 | . 3 Rammed . | . . Targets Rammed . | . . Kicked . | . . Crushed . | . . Highest Temperature 128 | . 128 Average Temperature 35 | . 35 Received Heat Transfer 288 | . 288 Siege Activations . | . . Robots Corrupted . | . . Combat Hostiles . | . . Parts Fried 1 | . 1 Impact Corruptions . | . . Robots Melted . | . . Combat Hostiles . | . . Parts Melted 1 | . 1 Heat Transferred 568 | . 568 Parts Sabotaged . | . . Parts Stolen . | . . Parts Stripped . | . . Power Chain Reactions 1 | . 1 Missiles Intercepted . | . . Alert | -11 -10 ------- Run | Jun Mat Peak Influence 121 | . 121 Initial . | . . Average 68 | . 68 Maximum Alert Level . | . . Low Security (%) 100 | . 100 Level 1 . | . . Level 2 . | . . Level 3 . | . . Level 4 . | . . Level 5 . | . . High Security . | . . Max Security . | . . Squads Dispatched 2 | . 2 Investigation . | . . Extermination . | . . Reinforcement 2 | . 2 Assault . | . . Garrison . | . . Intercept . | . . Searches Triggered . | . . Construction Impeded . | . . Haulers Reinforced . | . . Active Scanning Responses . | . . Cargo Convoy Interrupts . | . . Stealth | -11 -10 --------- Run | Jun Mat Distress Signals . | . . Communications Jammed . | . . Distress Signals . | . . Times Spotted 8 | . 8 Peak Tracking Total 3 | . 3 Tactical Retreats . | . . Traps | -11 -10 ------- Run | Jun Mat Traps Triggered 2 | . 2 Indirectly . | . . Trap Hack Attempts . | . . Triggered . | . . Disarmed . | . . Reprogrammed . | . . Reused . | . . Traps Extracted . | . . Installed . | . . Triggered . | . . Machines | -11 -10 ---------- Run | Jun Mat Machines Disabled 2 | . 2 Max in Single Turn 2 | . 2 Machines Repaired . | . . Machines Sabotaged . | . . Overloaded Fab Kills . | . . Hacking | -11 -10 --------- Run | Jun Mat Machines Accessed . | . . Terminals . | . . Fabricators . | . . Repair Stations . | . . Recycling Units . | . . Scanalyzers . | . . Garrison Access . | . . Total Hacks . | . . Successful . | . . Failed . | . . Catastrophic . | . . Database Lockouts . | . . Manual . | . . Terminals . | . . Fabricators . | . . Repair Stations . | . . Recycling Units . | . . Scanalyzers . | . . Garrison Access . | . . Terminal Hacks . | . . Fabricator Hacks . | . . Repair Station Hacks . | . . Recycling Unit Hacks . | . . Scanalyzer . | . . Garrison Access Hacks . | . . Unauthorized Hacks . | . . Terminals . | . . Fabricators . | . . Repair Stations . | . . Recycling Units . | . . Scanalyzers . | . . Garrison Access . | . . Data Cores Recovered . | . . Used . | . . Hacking Detections . | . . Full Trace Events . | . . Feedback Events . | . . Feedback Blocked . | . . Robot Schematics Acquired . | . . Robots Built . | . . Authchips . | . . Time . | . . Total Robot Build Rating . | . . Part Schematics Acquired . | . . Parts Built . | . . Authchips . | . . Time . | . . Total Part Build Rating . | . . Parts Repaired . | . . Time . | . . Parts Recycled . | . . Recycled Matter . | . . Retrieved Matter . | . . Retrieved Components . | . . Parts Scanalyzed . | . . Part Schematics Acquired . | . . Parts Damaged . | . . Bothacking | -11 -10 ------------ Run | Jun Mat Used RIF Installer . | . . Robots Hacked . | . . Non-combat . | . . Combat . | . . Robot Hacks Applied . | . . Relay Couplers Released . | . . Fabnet Peak Effective % . | . . Robots Rewired . | . . Allies Hacked . | . . Hacks Repelled . | . . Allies | -11 -10 -------- Run | Jun Mat Total Allies . | . . Largest Group . | . . Highest-Rated Group . | . . Highest-Rated Ally . | . . Total Orders . | . . Ally Attacks . | . . Total Damage . | . . Kills . | . . Allies Corrupted . | . . Allies Melted . | . . Intel | -11 -10 ------- Run | Jun Mat Robot Analysis Total . | . . Derelict Logs Recovered . | . . Drone Launches . | . . Drone Recoveries . | . . Exploration | -11 -10 ------------- Run | Jun Mat Turns Passed 205 | . 205 Spaces Moved 97 | 1 96 Core . | . . Treads 65 | . 65 Legs 32 | 1 31 Wheels . | . . Hover . | . . Flight . | . . Fastest Speed 120 | 120 120 Average Speed 147 | 120 147 Slowest Speed 240 | 120 240 Overloaded Moves . | . . Propulsion Burnouts . | . . Robots Hopped . | . . Cave-ins Triggered . | . . Exploration Rate (%) 13 | 2 25 Regions Visited 1 Branch Regions . Pre-discovered Areas . | . . Known Exits Taken . | . . Unknown Exits Taken 1 | 1 . Scrap Searched . | . . Spaces Dug . | . . Terrain Destroyed 19 | . 19 Melee . | . . Projectile . | . . AOE 19 | . 19 Terrain Rammed . | . . Walls Destroyed . | . . Machines Disabled . | . . Actions | -11 -10 --------- Run | Jun Mat Total 124 | . 124 Wait 2 | . 2 Move 96 | . 96 Hop . | . . Pick Up 1 | . 1 Fast Attach 4 | . 4 Attach 3 | . 3 Detach . | . . Swap 1 | . 1 Drop . | . . Fire 17 | . 17 Melee . | . . Ram . | . . Kick . | . . Crush . | . . Escape Stasis . | . . Rewire . | . . Trap . | . . Miscellaneous . | . . Route ------- -11/Junkyard -10/Materials History --------- Turn | Location | Event 1 | -11/Junkyard | Discovered new exit (range 0) 1 | -11/Junkyard | Entered Materials 102 | -10/Materials | Core integrity fell below 50% 162 | -10/Materials | Core integrity fell below 20% 206 | -10/Materials | Destroyed by G-34 Mercenary with Small Laser Last Messages --------------- 00092_ R-06 Scavenger collects Aluminum Leg. 00095_ Acquired 34 matter. 00096_ U-05 Engineer lays Concrete. 00107_ Lgt. Ion Engine destroyed. 00107_ U-05 Engineer lays Concrete. 00107_ Acquired 4 matter. 00108_ U-05 Engineer lays Concrete. 00115_ Triggered Blade Trap. 00115_ Massive razor-sharp blades shoot up from within the floor. 00115_ Assault Rifle severed. 00115_ Med. Laser severed. 00119_ G-47 Trooper destroyed. 00121_ R-06 Scavenger collects Imp. Heat Sink. 00156_ O-16 Technician: "IFF HANDSHAKE FAILED. SECURING TERMINAL." 00167_ ALERT: Hostiles spotted, dispatching reinforcements to Terminal M006. 00181_ Aluminum Leg destroyed. 00190_ Acquired Prototype Engine. 00190_ Identified Hvy. Ion Engine. 00197_ Acquired Particle Cannon. 00205_ G-34 Mercenary destroyed. Map ----- +----------------------------------------------------+ | | | | | | | | | | | | | | | | | | | | | | | | | | | | | | | | | | | ?????????????????????????????????????????????????? | | ?????????????????????????????????????????????????? | | ?????????????????????????????????????????????????? | | ?????????????????????????????????????????????????? | | ?????????????????????????????????????????????????? | | ?????????????????????????????????????????????????? | | ???????????????????########??????????????????????? | | ???????????????????#**!!]]#??????????????????????? | | ???????????????????#* !! @#??????????? #?????????? | | ???????????????????# =#?????????? #?????????? | | ???????????????????### g%########## ####??????? | | ?????????????????????# ??????? | | ???????????????# ##### ?????? | | ???????????????# t ??????? | | ???????????????# #####+##?????????? | | ???????????????# ^ """ #????????????????? | | ???????????????# """"" #????????????????? | | ???????????????# w """"" #????????????????? | | ??????????????# """"" #????????????????? | | ??????????????# """ #????????????????? | | ??????????????# #????????????????? | | ??????????????# #### #????????????????? | | ??????????????# ???# ############?????? | | ??????????????? ????# ^ ??? | | ?????????????????????# ??? | | ?????????????????????# ??? | | ?????????????????????# #####################???? | | ?????????????????????# #???????????????????????? | | ?????????????????????# #???????????????????????? | | ?????????????????????# #???????????????????????? | | ?????????????????????# #???????????????????????? | | ?????????????????????# ##################??????? | | ?????????????????????# ?????? | +----------------------------------------------------+ Best States ------------- Heat Dissipation 25 Energy Generation 14 Energy Capacity 280 Matter Stores 300 Matter Capacity 300 Sight Range 16 Robot Scan Range 14 Terrain Scan Density 10 Evasion (%) 55 Recoil Reduction 1 Item Schematics ----------------- None Robot Schematics ------------------ None Fabricated ------------ Nothing Alien Tech Used ----------------- None Achievements -------------- None Challenges ------------ None Game ------ Seed UtilitySurveybotFlamer Manual? 0 Play Time 00:04:09 Cumulative 77.5 hours Start 2023.03.09 @ 19:57:00 End 2023.03.09 @ 19:59:12 Sessions 1 Manual Loads 0 Difficulty Rogue Special Mode None Game No. 111 Rogue 107 Adventurer 0 Explorer 4 Win Type - Total 0 Types 0/0/0/0/0/0/0/0/0 Lore% 23 Gallery% 38 Achievement% 31 Wizard Run 0 Options --------- ASCII 0 Keyboard 1 Movement Arrows Keybinds 0 Fullscreen 2 Font 24/Smallcaps Map View 113x50 Tactical HUD 1 Map Filters NONE Filters NONE Steam 1 RUN: 6c7c5c95-a040-4449-a0ea-cb7c3b364522